fUST/lending_fUST_20240121
["ID","MTS","AMOUNT","RATE_DAILY","PERIOD"]
[312321967,1705774239520,-207.12069053,0.00029788,2]
[312321969,1705774239529,-500.0,0.00029788,2]
[312321972,1705774239539,-520.31747884,0.00029788,2]
[312321974,1705774239549,-500.0,0.00029788,2]
[312321976,1705774239558,-500.0,0.00029788,2]
[312321977,1705774239567,-500.0,0.00029788,2]
[312321980,1705774239577,-500.0,0.00029788,2]
[312321981,1705774239586,-251.01561854,0.00029788,2]
[312321983,1705774239595,-500.0,0.00029788,2]
[312321985,1705774239603,-455.41850651,0.00029788,2]
[312321987,1705774239612,-500.0,0.00029788,2]
[312321989,1705774239621,-500.0,0.00029788,2]
[312321991,1705774239631,-500.0,0.00029788,2]
[312321993,1705774239640,-500.0,0.00029788,2]
[312321995,1705774239649,-500.0,0.00029788,2]
[312321997,1705774239658,-500.0,0.00029788,2]
[312321999,1705774239667,-500.0,0.00029788,2]
[312322001,1705774239676,-358.62023914,0.00029788,2]
[312322004,1705774239686,-500.0,0.00029788,2]
[312322006,1705774239695,-500.0,0.00029788,2]
[312322007,1705774239705,-500.0,0.00029788,2]
[312322009,1705774239714,-500.0,0.00029788,2]
[312322011,1705774239723,-500.0,0.00029788,2]
[312322013,1705774239732,-500.0,0.00029788,2]
[312322016,1705774239742,-500.0,0.00029788,2]
[312322018,1705774239751,-183443.74263975,0.0002979,7]
[312322020,1705774239760,-921.3766147,0.000298,2]
[312322022,1705774239770,-42519.20318145,0.0003,2]
[312322023,1705774239779,-22165.86370198,0.0003,2]
[312322025,1705774239788,-6195.3131571,0.0003,2]
[312322027,1705774239797,-30497.95907604,0.0003,3]
[312322028,1705774239806,-2104.48868232,0.0003,4]
[312322029,1705774239815,-18589.14989047,0.0003,2]
[312322030,1705774239824,-699.95088598,0.0003,2]
[312322031,1705774239834,-188.0,0.0003,2]
[312322032,1705774239843,-490.81087528,0.000305,2]
[312322033,1705774239974,-465.50241451,0.00030999,4]
[312322034,1705774239985,-616.65799168,0.00030999,4]
[312322035,1705774239994,-183.11649673,0.00030999,4]
[312322036,1705774240003,-177809.90143555,0.00031,2]
[312322037,1705774240016,-486.87,0.00031,2]
[312322038,1705774240028,-1206.22,0.00031,2]
[312322261,1705775239389,4000.0,0.00029,30]
[312322281,1705775431772,-849.96832798,0.00023357,2]
[312322282,1705775431781,-1581.76828075,0.00023357,2]
[312322283,1705775431790,-559.18940555,0.00023358,2]
[312322284,1705775431830,-7442.42127359,0.00023358,2]
[312322285,1705775431839,-678.35754423,0.00023358,2]
[312322286,1705775431848,-1197.48170656,0.00023358,2]
[312322287,1705775431858,-3966.85623058,0.00023359,2]
[312322288,1705775431867,-327.38324213,0.0002336,2]
[312322289,1705775431876,-43.21683232,0.0002336,2]
[312322338,1705775438957,-2400.53254359,0.0002336,2]
[312322345,1705775439017,-2737.68045499,0.0002336,2]
[312322347,1705775439026,-1114.14548175,0.0002336,2]
[312322350,1705775439035,-154.78330338,0.00023361,4]
[312322352,1705775439044,-824.03065617,0.00023361,2]
[312322354,1705775439053,-265.38873656,0.00023361,2]
[312322356,1705775439062,-533.37510912,0.00023384,5]
[312322358,1705775439071,-166.666666,0.00023423,2]
[312322360,1705775439080,-168.891698,0.00023803,2]
[312322362,1705775439089,-166.666666,0.00024061,2]
[312322364,1705775439098,-1029.93915553,0.00024683,2]
[312322366,1705775439107,-166.666666,0.000247,2]
[312322368,1705775439116,-498.11936971,0.0002496,5]
[312322370,1705775439125,-537.2836582,0.00025338,2]
[312322372,1705775439137,-508.62286844,0.00025338,2]
[312322374,1705775439146,-166.666666,0.00025339,2]
[312322376,1705775439155,-309.33487517,0.00025454,2]
[312322378,1705775439163,-200.0,0.0002572,7]
[312322380,1705775439172,-166.666666,0.00025977,2]
[312322382,1705775439181,-470.52459336,0.00025982,2]
[312322384,1705775439190,-24900.0,0.00025984,2]
[312322386,1705775439199,-166.666666,0.00026616,2]
[312322388,1705775439207,-851.11191011,0.0002728,2]
[312322389,1705775439216,-4969.59,0.00028264,3]
[312322391,1705775439226,-4012.5594866,0.00028284,2]
[312322393,1705775439235,-4042.41322367,0.00028285,5]
[312322395,1705775439244,-69193.42908732,0.00028285,2]
[312322397,1705775439253,-280.0,0.00028292,15]
[312322399,1705775439262,-631.55559551,0.00028644,2]
[312322401,1705775439271,-254.668555,0.00028767,2]
[312322403,1705775439279,-165.996878,0.00028767,2]
[312322405,1705775439288,-990.37007015,0.000289,2]
[312322407,1705775439297,-275.40943256,0.00029,2]
[312322408,1705775439306,-154.78330338,0.00029,2]
[312322410,1705775439315,-261.47401535,0.00029,2]
[312322412,1705775439324,-3216.27669923,0.00029,2]
[312322414,1705775439333,-763.70587335,0.00029,2]
[312322416,1705775439342,-620.03074821,0.0002937,2]
[312322418,1705775439351,-9116.9761504,0.0002945,4]
[312322420,1705775439360,-159.79687654,0.00029487,2]
[312322422,1705775439369,-154.78330338,0.00029587,2]
[312322424,1705775439378,-323.65791744,0.00029587,2]
[312322426,1705775439387,-329.8920866,0.00029587,2]
[312322428,1705775439396,-178.69540057,0.00029588,2]
[312322430,1705775439405,-229.59181648,0.00029588,2]
[312322432,1705775439414,-166.94378863,0.00029588,2]
[312322434,1705775439423,-8435.53516353,0.00029588,2]
[312322435,1705775439433,-188.50754412,0.00029589,3]
[312322437,1705775439442,-181649.00116783,0.00029589,2]
[312322439,1705775439450,-254.668555,0.00029648,2]
[312322441,1705775439459,-165.996878,0.00029715,2]
[312322443,1705775439468,-159.79687651,0.0002984,2]
[312322445,1705775439477,-900.0,0.0003,2]
[312322447,1705775439486,-464.45635989,0.0003,2]
[312322449,1705775439495,-657.10397362,0.0003,3]
[312322451,1705775439504,-2370.49814603,0.0003,2]
[312322453,1705775439515,-6763.78500734,0.0003,4]
[312322455,1705775439524,-212.0,0.0003,2]
[312322457,1705775439533,-620.57777978,0.00030076,2]
[312322459,1705775439542,-500.0,0.00030136,2]
[312322461,1705775439551,-153.0,0.00030137,2]
[312322463,1705775439560,-170.8109915,0.00030137,2]
[312322464,1705775439569,-153.2749664,0.00030137,2]
[312322466,1705775439579,-156.5731179,0.00030137,2]
[312322468,1705775439588,-153.0,0.00030137,2]
[312322470,1705775439597,-418.0246281,0.00030137,2]
[312322471,1705775439606,-153.0,0.00030137,2]
[312322472,1705775439614,-308.5597583,0.00030137,2]
[312322473,1705775439624,-159.79687651,0.00030194,2]
[312322474,1705775439633,-500.0,0.00030273,2]
[312322475,1705775439642,-500.0,0.0003041,2]
[312322476,1705775439650,-254.668555,0.00030528,2]
[312322477,1705775439659,-159.79687651,0.00030547,2]
[312322478,1705775439668,-500.0,0.00030547,2]
[312322479,1705775439677,-165.996878,0.00030664,2]
[312322480,1705775439686,-500.0,0.00030684,2]
[312322481,1705775439697,-500.0,0.00030821,2]
[312322482,1705775439706,-620.00153741,0.00030838,2]
[312322483,1705775439715,-159.79687651,0.000309,2]
[312322484,1705775439725,-500.0,0.00030958,2]
[312322485,1705775439734,-240.0,0.0003097,30]
[312322486,1705775439744,-150.5,0.0003098,30]
[312322487,1705775439752,-232.46,0.0003099,30]
[312322488,1705775439761,-150.5,0.0003099,30]
[312322489,1705775439770,-227.04604148,0.00030998,4]
[312322490,1705775439780,-155.21514943,0.00030998,2]
[312322491,1705775439789,-196.68331044,0.00030998,4]
[312322492,1705775439798,-500.0,0.00030999,2]
[312322493,1705775439807,-226.70007997,0.00030999,2]
[312322494,1705775439815,-500.0,0.00030999,2]
[312322495,1705775439824,-500.0,0.00030999,2]
[312322496,1705775439833,-500.0,0.00030999,2]
[312322497,1705775439842,-500.0,0.00030999,2]
[312322499,1705775439851,-586.84195651,0.00030999,2]
[312322501,1705775439861,-500.0,0.00030999,2]
[312322503,1705775439870,-500.0,0.00030999,2]
[312322506,1705775439879,-594.25230292,0.00030999,2]
[312322508,1705775439888,-422.38618759,0.00030999,2]
[312322510,1705775439898,-500.0,0.00030999,2]
[312322512,1705775439907,-500.0,0.00030999,2]
[312322514,1705775439916,-500.0,0.00030999,2]
[312322516,1705775439926,-481.17010296,0.00030999,2]
[312322520,1705775439935,-500.0,0.00030999,2]
[312322523,1705775439945,-500.0,0.00030999,2]
[312322526,1705775439954,-312.86344158,0.00030999,2]
[312322529,1705775439963,-500.0,0.00030999,2]
[312322532,1705775439973,-502.3020687,0.00030999,2]
[312322534,1705775439982,-500.0,0.00030999,2]
[312322536,1705775439991,-500.0,0.00030999,2]
[312322538,1705775440000,-500.0,0.00030999,2]
[312322540,1705775440010,-500.0,0.00030999,2]
[312322542,1705775440020,-500.0,0.00030999,2]
[312322544,1705775440028,-500.0,0.00030999,2]
[312322546,1705775440038,-500.0,0.00030999,2]
[312322548,1705775440047,-500.0,0.00030999,2]
[312322550,1705775440056,-500.0,0.00030999,2]
[312322552,1705775440066,-500.0,0.00030999,2]
[312322554,1705775440074,-500.0,0.00030999,2]
[312322556,1705775440083,-500.0,0.00030999,2]
[312322558,1705775440093,-500.0,0.00030999,2]
[312322560,1705775440102,-364.6013096,0.00030999,2]
[312322562,1705775440111,-364.22223519,0.00030999,2]
[312322564,1705775440121,-207.12069053,0.00030999,2]
[312322566,1705775440130,-500.0,0.00030999,2]
[312322567,1705775440139,-525.71093298,0.00030999,2]
[312322569,1705775440149,-500.0,0.00030999,2]
[312322570,1705775440158,-343.44809566,0.00030999,2]
[312322572,1705775440167,-500.0,0.00030999,2]
[312322574,1705775440177,-500.0,0.00030999,2]
[312322576,1705775440186,-500.0,0.00030999,2]
[312322578,1705775440195,-500.0,0.00030999,2]
[312322580,1705775440204,-500.0,0.00030999,2]
[312322582,1705775440214,-182.1674026,0.00030999,2]
[312322583,1705775440223,-500.0,0.00030999,2]
[312322585,1705775440232,-500.0,0.00030999,2]
[312322587,1705775440241,-500.0,0.00030999,2]
[312322589,1705775440250,-188.8,0.00030999,2]
[312322590,1705775440260,-1000.0,0.00030999,14]
[312322592,1705775440269,-1000.0,0.00030999,14]
[312322594,1705775440278,-1000.0,0.00030999,14]
[312322595,1705775440287,-1000.0,0.00030999,14]
[312322597,1705775440296,-302.72586559,0.00030999,14]
[312322599,1705775440305,-437812.51120302,0.00031,2]
[312322600,1705775440314,-238.14143998,0.00031,4]
[312322602,1705775440323,-283.12887752,0.00031,3]
[312322604,1705775440333,-980.8946807,0.00031,4]
[312322606,1705775440342,-200.37400988,0.00031,2]
[312322607,1705775440353,-195.24830445,0.00031,4]
[312322609,1705775440362,-500.0,0.00031095,2]
[312322611,1705775440371,-391.0,0.00031121,15]
[312322612,1705775440379,-500.0,0.00031232,2]
[312322613,1705775440389,-500.0,0.00031369,2]
[312322614,1705775440398,-254.668555,0.00031409,2]
[312322615,1705775440408,-500.0,0.00031506,2]
[312322616,1705775440416,-457.79124181,0.00031569,4]
[312322617,1705775440426,-620.66988602,0.00031569,4]
[312322618,1705775440435,-412.32449765,0.00031569,4]
[312322619,1705775440444,-500.0,0.00031569,4]
[312322620,1705775440452,-555.52663894,0.00031569,4]
[312322621,1705775440461,-500.0,0.00031569,4]
[312322622,1705775440471,-500.0,0.00031569,4]
[312322623,1705775440480,-164.92979905,0.00031569,4]
[312322624,1705775440489,-475.68781302,0.00031569,2]
[312322625,1705775440498,-5277.6121575,0.0003157,6]
[312322626,1705775440507,-2400.36181908,0.0003157,5]
[312322627,1705775440516,-27958.45522684,0.0003157,6]
[312322628,1705775440660,-5118.0474146,0.0003157,6]
[312322629,1705775440673,-16923.49735856,0.0003157,6]
[312322630,1705775440682,-93983.75799916,0.0003157,7]
[312322631,1705775440692,-65341.16755252,0.0003157,6]
[312322632,1705775440704,-2412.93311631,0.0003157,4]
[312322633,1705775440712,-165.996878,0.00031612,2]
[312322634,1705775440722,-500.0,0.00031643,2]
[312322635,1705775440731,-153.52997654,0.00031686,2]
[312322636,1705775440741,-500.0,0.0003178,2]
[312322637,1705775440750,-155.0,0.00031876,2]
[312322638,1705775440759,-205.34179861,0.00031898,2]
[312322639,1705775440769,-4333.10440972,0.00031898,3]
[312322640,1705775440778,-677.75639408,0.00031898,4]
[312322641,1705775440787,-1169.47942517,0.00031898,4]
[312322642,1705775440797,-155.03101523,0.00031899,4]
[312322643,1705775440806,-290.00241025,0.00031899,4]
[312322644,1705775440815,-425.62034809,0.00031899,2]
[312322645,1705775440825,-620.47380229,0.000319,4]
[312322646,1705775440835,-10297.45913414,0.000319,4]
[312322648,1705775440844,-384.33930543,0.000319,4]
[312322650,1705775440854,-500.0,0.00031917,2]
[312322652,1705775440864,-1570.89243892,0.00031998,4]
[312322654,1705775440873,-246.0287908,0.00031999,4]
[312322656,1705775440882,-285201.86665853,0.00032,4]
[312322657,1705775440890,-154.78330338,0.00032,4]
[312322659,1705775440899,-500.0,0.00032054,2]
[312322661,1705775440908,-254.668555,0.0003229,2]
[312322663,1705775440918,-1221.04987861,0.00032368,2]
[312322665,1705775440927,-251.7767861,0.00032368,2]
[312322667,1705775440936,-1352.70738077,0.00032368,2]
[312322669,1705775440945,-222.36027177,0.00032368,2]
[312322671,1705775440954,-8399.51776998,0.00032368,2]
[312322673,1705775440963,-152.72377404,0.00032368,2]
[312322675,1705775440972,-1094.47895322,0.000325,20]
[312322677,1705775440982,-165.996878,0.00032561,2]
[312322679,1705775440991,-151.0,0.00032642,2]
[312322681,1705775441000,-150.0,0.00032686,2]
[312322683,1705775441009,-352.10517391,0.00032876,7]
[312322684,1705775441019,-500.0,0.00032876,7]
[312322686,1705775441029,-235.87757722,0.00032876,7]
[312322688,1705775441038,-320.68922719,0.00032876,7]
[312322690,1705775441047,-500.0,0.00032876,7]
[312322692,1705775441056,-500.0,0.00032876,7]
[312322694,1705775441066,-626.72655152,0.00032876,7]
[312322696,1705775441075,-500.0,0.00032876,7]
[312322698,1705775441083,-191.78964069,0.00032876,7]
[312322700,1705775441093,-500.0,0.00032876,7]
[312322702,1705775441102,-500.0,0.00032876,7]
[312322704,1705775441111,-234.64758119,0.00032876,7]
[312322706,1705775441120,-500.0,0.00032876,7]
[312322708,1705775441128,-500.0,0.00032876,7]
[312322710,1705775441137,-500.0,0.00032876,7]
[312322712,1705775441146,-500.0,0.00032876,7]
[312322714,1705775441155,-500.0,0.00032876,7]
[312322716,1705775441163,-500.0,0.00032876,7]
[312322718,1705775441172,-500.0,0.00032876,7]
[312322719,1705775441181,-500.0,0.00032876,7]
[312322721,1705775441191,-500.0,0.00032876,7]
[312322723,1705775441199,-500.0,0.00032876,7]
[312322725,1705775441208,-500.0,0.00032876,7]
[312322727,1705775441218,-500.0,0.00032876,7]
[312322729,1705775441227,-500.0,0.00032876,7]
[312322731,1705775441236,-156.25770411,0.00032876,7]
[312322733,1705775441246,-156.09524365,0.00032876,7]
[312322735,1705775441255,-225.30468556,0.00032876,7]
[312322737,1705775441263,-507.58607174,0.00032876,7]
[312322739,1705775441273,-500.0,0.00032876,7]
[312322741,1705775441282,-500.0,0.00032876,7]
[312322755,1705775441405,-500.0,0.00032876,7]
[312322757,1705775441415,-636.62555195,0.00032876,7]
[312322759,1705775441424,-500.0,0.00032876,7]
[312322761,1705775441434,-500.0,0.00032876,7]
[312322763,1705775441444,-500.0,0.00032876,7]
[312322765,1705775441453,-250.0,0.00032876,7]
[312322767,1705775441462,-500.0,0.00032876,7]
[312322769,1705775441471,-274.67474509,0.00032876,7]
[312322771,1705775441480,-465.50241451,0.00032876,7]
[312322773,1705775441489,-247.39469859,0.00032876,7]
[312322775,1705775441498,-500.0,0.00032876,7]
[312322777,1705775441507,-541.64497921,0.00032876,7]
[312322779,1705775441516,-154.78330338,0.00033,4]
[312322780,1705775441525,-2846.05665284,0.00033,2]
[312322782,1705775441535,-158.97429893,0.00033,2]
[312322784,1705775441545,-160.0,0.00033,2]
[312322786,1705775441556,-171.0,0.00033,2]
[312322788,1705775441566,-212.0,0.00033,2]
[312322790,1705775441575,-212.0,0.00033,2]
[312322792,1705775441584,-150.78889555,0.00033073,2]
[312322794,1705775441593,-160.0,0.00033151,2]
[312322796,1705775441602,-254.668555,0.0003317,2]
[312322798,1705775441612,-155.0,0.00033246,2]
[312322800,1705775441621,-151.0,0.00033284,2]
[312322802,1705775441630,-165.996878,0.00033509,2]
[312322804,1705775441639,-990.37007015,0.000339,2]
[312322806,1705775441648,-151.0,0.00033927,2]
[312322808,1705775441657,-171.79662836,0.00034,7]
[312322810,1705775441667,-1550.76333748,0.00034,3]
[312322812,1705775441676,-10990.39266955,0.00034,2]
[312322814,1705775441685,-254.668555,0.00034051,2]
[312322816,1705775441698,-200.0,0.00034233,15]
[312322818,1705775441708,-348.0,0.00034233,15]
[312322820,1705775441717,-500.0,0.00034246,7]
[312322822,1705775441726,-165.996878,0.00034457,2]
[312322824,1705775441736,-160.0,0.00034521,2]
[312322826,1705775441746,-151.0,0.0003457,2]
[312322827,1705775441754,-155.0,0.00034616,2]
[312322829,1705775441763,-254.668555,0.00034932,2]
[312322831,1705775441773,-2085.08363542,0.00035,4]
[312322833,1705775441782,-333.12649891,0.00035,4]
[312322835,1705775441791,-154.78330338,0.00035,4]
[312322837,1705775441800,-3119.96924767,0.00035,20]
[312322839,1705775441810,-154.78330338,0.00035,6]
[312322841,1705775441819,-155.23866682,0.00035,2]
[312322843,1705775441829,-2356.16401148,0.00035,2]
[312322845,1705775441838,-591.88726683,0.00035,2]
[312322847,1705775441847,-548.14664073,0.00035,7]
[312322849,1705775441856,-31980.30894113,0.00035,4]
[312322851,1705775441866,-165.0,0.00035,2]
[312322853,1705775441875,-201.71762558,0.00035,2]
[312322855,1705775441884,-303.81764184,0.00035,2]
[312322857,1705775441893,-151.0,0.00035212,4]
[312322859,1705775441903,-500.0,0.000353,7]
[312322861,1705775441912,-165.996878,0.00035406,2]
[312322863,1705775441921,-4425.50824305,0.000355,14]
[312322865,1705775441930,-500.0,0.000356,7]
[312322867,1705775441938,-500.0,0.00035616,2]
[312322869,1705775441947,-500.0,0.00035616,2]
[312322871,1705775441957,-500.0,0.00035616,2]
[312322873,1705775441966,-500.0,0.00035616,2]
[312322875,1705775441975,-500.0,0.00035616,2]
[312322877,1705775441984,-500.0,0.00035616,2]
[312322879,1705775441994,-500.0,0.00035616,2]
[312322880,1705775442003,-291.50651603,0.00035616,2]
[312322882,1705775442012,-750.0,0.00035616,7]
[312322884,1705775442022,-182.36949,0.00035616,120]
[312322887,1705775442031,-201.71762558,0.000357,2]
[312322888,1705775442041,-254.668555,0.00035812,2]
[312322890,1705775442050,-151.0,0.00035855,4]
[312322893,1705775442060,-5000.0,0.00035956,2]
[312322895,1705775442069,-155.0,0.00035986,2]
[312322896,1705775442078,-212.0,0.00036,2]
[312322898,1705775442088,-212.0,0.00036,2]
[312322901,1705775442098,-4642.93341299,0.00036045,4]
[312322902,1705775442107,-8787.88020476,0.00036045,2]
[312322904,1705775442117,-160.81104418,0.00036205,2]
[312322906,1705775442127,-162.0,0.00036247,2]
[312322908,1705775442136,-160.0,0.00036313,10]
[312322910,1705775442145,-151.0,0.00036314,2]
[312322912,1705775442154,-357.313658,0.00036314,2]
[312322914,1705775442164,-357.313658,0.00036314,2]
[312322916,1705775442173,-169.798278,0.00036314,2]
[312322918,1705775442182,-151.0,0.00036314,2]
[312322920,1705775442190,-4835.053427,0.00036314,2]
[312322921,1705775442200,-4835.053427,0.00036314,2]
[312322922,1705775442209,-151.0,0.00036314,2]
[312322923,1705775442219,-39895.15766712,0.00036314,2]
[312322924,1705775442228,-158900.18177208,0.00036314,2]
[312322925,1705775442237,-93091.80434082,0.00036314,2]
[312322926,1705775442246,-165.996878,0.00036354,2]
[312322927,1705775442255,-201.71762558,0.000364,2]
[312322929,1705775442265,-151.0,0.00036498,4]
[312322931,1705775442274,-254.668555,0.00036693,2]
[312322932,1705775442282,-150.0,0.00036729,2]
[312322936,1705775442292,-150.0,0.00036729,2]
[312322939,1705775442301,-150.78889555,0.00036748,2]
[312322942,1705775442310,-250.14068304,0.00036748,2]
[312322944,1705775442320,-1000.0,0.00036986,7]
[312322945,1705775442329,-154.78330338,0.00037,4]
[312322948,1705775442340,-150.0,0.00037,30]
[312322949,1705775442349,-5000.0,0.00037029,7]
[312322951,1705775442358,-5000.0,0.00037029,7]
[312322953,1705775442367,-5000.0,0.00037029,7]
[312322955,1705775442376,-242.0611507,0.000371,5]
[312322957,1705775442385,-243.452,0.00037107,2]
[312322959,1705775442394,-151.0,0.0003714,4]
[312322962,1705775442404,-302.0,0.0003718,2]
[312322964,1705775442413,-300.0,0.0003718,2]
[312322966,1705775442422,-150.0,0.000372,30]
[312322968,1705775442431,-575.0,0.000372,2]
[312322970,1705775442440,-165.996878,0.00037302,2]
[312322971,1705775442449,-155.0,0.00037356,2]
[312322974,1705775442459,-301.57779109,0.00037365,4]
[312322976,1705775442468,-212.642763,0.000374,30]
[312322977,1705775442478,-1000.0,0.00037473,10]
[312322979,1705775442487,-254.668555,0.00037573,2]
[312322981,1705775442496,-500.0,0.000376,7]
[312322983,1705775442506,-200.0,0.00037656,15]
[312322987,1705775442517,-200.0,0.00037656,15]
[312322989,1705775442526,-368.0,0.00037656,15]
[312322993,1705775442536,-151.0,0.00037783,4]
[312322996,1705775442545,-161.61608903,0.000378,5]
[312322999,1705775442555,-603.15558218,0.00037993,7]
[312323001,1705775442564,-2139.23248446,0.00038,4]
[312323003,1705775442573,-3679.38300141,0.00038,4]
[312323005,1705775442582,-500.0,0.000381,7]
[312323006,1705775442591,-154.78330338,0.00038219,7]
[312323008,1705775442600,-157.8896426,0.00038219,2]
[312323010,1705775442609,-165.996878,0.00038251,2]
[312323012,1705775442618,-1250.0,0.00038356,7]
[312323014,1705775442628,-151.0,0.00038425,4]
[312323016,1705775442637,-254.668555,0.00038454,2]
[312323018,1705775442646,-166.76045536,0.00038632,4]
[312323021,1705775442655,-263.54542461,0.00038726,2]
[312323022,1705775442665,-1206.31116437,0.00038955,30]
[312323024,1705775442675,-241.71048008,0.00038996,4]
[312323026,1705775442684,-170.76550909,0.00038997,4]
[312323029,1705775442695,-467.81551425,0.00038997,4]
[312323030,1705775442705,-201.11814848,0.00038998,4]
[312323033,1705775442715,-506.98936233,0.00038998,4]
[312323034,1705775442724,-291.09779907,0.00038998,4]
[312323037,1705775442734,-428.76124721,0.00038998,4]
[312323039,1705775442745,-494.08849875,0.00038998,4]
[312323041,1705775442754,-341.21890079,0.00038999,4]
[312323043,1705775442763,-213.72364692,0.00038999,4]
[312323044,1705775442774,-368.33507795,0.00038999,4]
[312323047,1705775442784,-212.0,0.00039,2]
[312323049,1705775442793,-151.0,0.00039068,4]
[312323051,1705775442802,-159.57600549,0.00039124,7]
[312323053,1705775442811,-165.996878,0.00039199,2]
[312323055,1705775442820,-254.668555,0.00039335,2]
[312323056,1705775442829,-280.04844758,0.000396,30]
[312323059,1705775442839,-151.0,0.00039711,4]
[312323061,1705775442848,-1500.0,0.00039726,7]
[312323063,1705775442857,-150.0,0.00039729,2]
[312323065,1705775442866,-150.0,0.00039729,2]
[312323067,1705775442875,-5000.0,0.00039759,7]
[312323068,1705775442884,-5000.0,0.00039759,7]
[312323070,1705775442893,-50000.0,0.00039759,7]
[312323073,1705775442902,-5782.00120101,0.00039865,7]
[312323075,1705775442912,-160.0,0.00039871,14]
[312323077,1705775442920,-5769.07722314,0.0003999,4]
[312323079,1705775442929,-154.78330338,0.0004,7]
[312323080,1705775442938,-1279.9341791,0.0004,4]
[312323082,1705775442947,-154.78330338,0.0004,4]
[312323085,1705775442956,-738.23836783,0.0004,2]
[312323087,1705775442965,-299.65506824,0.0004,2]
[312323089,1705775442975,-5000.0,0.0004,2]
[312323091,1705775442984,-517.49938136,0.0004,5]
[312323092,1705775442993,-719.57029108,0.0004,2]
[312323094,1705775443002,-18893.38699722,0.0004,15]
[312323096,1705775443011,-2717.25590153,0.0004,2]
[312323098,1705775443020,-16210.00302709,0.0004,10]
[312323100,1705775443029,-168.25252747,0.0004,2]
[312323102,1705775443038,-1818.24780087,0.0004,2]
[312323105,1705775443047,-59247.05671983,0.0004,5]
[312323107,1705775443057,-500.0,0.0004,10]
[312323109,1705775443066,-592.4338243,0.0004,30]
[312323111,1705775443075,-249.35630735,0.0004,2]
[312323113,1705775443084,-1845.46619047,0.0004,4]
[312323115,1705775443094,-290.53429954,0.0004,4]
[312323117,1705775443103,-150.0,0.0004,32]
[312323119,1705775443117,-151.0,0.0004,2]
[312323121,1705775443126,-151.0,0.0004,2]
[312323123,1705775443135,-151.0,0.0004,2]
[312323125,1705775443144,-357.313658,0.0004,2]
[312323127,1705775443154,-357.313658,0.0004,2]
[312323129,1705775443163,-151.0,0.0004,2]
[312323131,1705775443172,-4835.053427,0.0004,2]
[312323133,1705775443180,-4835.053427,0.0004,2]
[312323135,1705775443189,-151.0,0.0004,2]
[312323137,1705775443199,-156.89344232,0.0004007,30]
[312323139,1705775443208,-255.861636,0.00040133,2]
[312323141,1705775443217,-419.908429,0.00040133,2]
[312323143,1705775443226,-154.993164,0.00040133,2]
[312323145,1705775443236,-156.965521,0.00040133,2]
[312323147,1705775443246,-165.996878,0.00040147,2]
[312323149,1705775443255,-333.2863,0.00040179,7]
[312323151,1705775443264,-254.668555,0.00040215,2]
[312323153,1705775443272,-151.0,0.00040353,21]
[312323155,1705775443282,-159.57600549,0.00040597,30]
[312323157,1705775443291,-255.861636,0.00040635,2]
[312323159,1705775443300,-419.908429,0.00040635,2]
[312323161,1705775443309,-1500.0,0.000407,3]
[312323163,1705775443319,-5000.0,0.00040956,4]
[312323165,1705775443328,-2574.0,0.00040986,7]
[312323167,1705775443337,-151.0,0.00040996,21]
[312323169,1705775443346,-23104.86657698,0.00041,10]
[312323171,1705775443355,-4497.59440094,0.00041,10]
[312323173,1705775443364,-10326.37001279,0.00041,10]
[312323175,1705775443373,-7304.91750841,0.00041,2]
[312323177,1705775443382,-160.0,0.00041094,30]
[312323179,1705775443391,-499.79256159,0.00041095,31]